bitfinex/quotes_BTCUSD_20220405
["timestamp","ask_amount","ask_price","bid_price","bid_amount"]
[1649118554224,0.3000178,46587.0,46586.0,0.06871734]
[1649118554323,0.6221878,46587.0,46586.0,0.06871734]
[1649118554974,0.3000178,46587.0,46586.0,0.06871734]
[1649118555920,0.29995383,46587.0,46586.0,0.06871734]
[1649118556773,0.10008266,46588.0,46586.0,0.06871734]
[1649118560872,0.3,46587.0,46586.0,0.06871734]
[1649118562774,0.10008266,46588.0,46586.0,0.06871734]
[1649118563433,0.40008266,46588.0,46586.0,0.06871734]
[1649118563529,0.10008266,46588.0,46586.0,0.06871734]
[1649118567534,0.05008266,46588.0,46586.0,0.06871734]
[1649118567986,8.266e-05,46588.0,46586.0,0.06871734]
[1649118568587,8.266e-05,46588.0,46587.0,0.33469196]
[1649118569593,8.266e-05,46588.0,46586.0,0.06871734]
[1649118573426,0.32217,46587.0,46586.0,0.06871734]
[1649118573530,8.266e-05,46588.0,46586.0,0.06871734]
[1649118573676,0.32217,46587.0,46586.0,0.06871734]
[1649118573875,0.37217,46587.0,46586.0,0.06871734]
[1649118575573,0.05,46587.0,46586.0,0.06871734]
[1649118575675,8.266e-05,46588.0,46586.0,0.06871734]
[1649118577725,8.266e-05,46588.0,46586.0,0.06859878]
[1649118578228,0.32223612,46587.0,46586.0,0.06859878]
[1649118578332,0.05006612,46587.0,46586.0,0.06859878]
[1649118578673,6.612e-05,46587.0,46586.0,0.06859878]
[1649118581737,0.32223612,46587.0,46586.0,0.06859878]
[1649118581832,0.67223612,46587.0,46586.0,0.06859878]
[1649118581932,0.35006612,46587.0,46586.0,0.06859878]
[1649118582176,0.67223612,46587.0,46586.0,0.06859878]
[1649118582274,0.35006612,46587.0,46586.0,0.06859878]
[1649118582377,0.67223612,46587.0,46586.0,0.06859878]
[1649118582477,0.72223612,46587.0,46586.0,0.06859878]
[1649118582574,0.76503612,46587.0,46586.0,0.06859878]
[1649118583075,0.71503612,46587.0,46586.0,0.06859878]
[1649118583674,0.91862797,46587.0,46586.0,0.06859878]
[1649118584879,0.71503612,46587.0,46586.0,0.06859878]
[1649118585226,0.37223612,46587.0,46586.0,0.06859878]
[1649118585325,6.612e-05,46587.0,46586.0,0.06859878]
[1649118588304,0.32223612,46587.0,46586.0,0.06859878]
[1649118588653,0.37223612,46587.0,46586.0,0.06859878]
[1649118590405,0.67223612,46587.0,46586.0,0.06859878]
[1649118592761,0.37223612,46587.0,46586.0,0.06859878]
[1649118594079,0.67223612,46587.0,46586.0,0.06859878]
[1649118594281,0.67223612,46587.0,46586.0,0.06828425]
[1649118595485,0.37223612,46587.0,46586.0,0.06828425]
[1649118595687,0.67223612,46587.0,46586.0,0.06828425]
[1649118595788,0.37223612,46587.0,46586.0,0.06828425]
[1649118596193,0.67223612,46587.0,46586.0,0.06828425]
[1649118596386,0.37223612,46587.0,46586.0,0.06828425]
[1649118596888,0.67223612,46587.0,46586.0,0.06828425]
[1649118597328,0.37223612,46587.0,46586.0,0.06828425]
[1649118598381,0.67223612,46587.0,46586.0,0.06828425]
[1649118598628,0.37223612,46587.0,46586.0,0.06828425]
[1649118600134,0.37223612,46587.0,46586.0,0.05969983]
[1649118600336,0.36364985,46587.0,46586.0,0.05969983]
[1649118601075,0.04147985,46587.0,46586.0,0.35143898]
[1649118601179,0.04147985,46587.0,46586.0,0.05969983]
[1649118601381,8.266e-05,46588.0,46586.0,0.05969983]
[1649118602181,8.266e-05,46588.0,46587.0,0.22398445]
[1649118602378,8.266e-05,46588.0,46586.0,0.05969983]
[1649118602478,8.266e-05,46588.0,46586.0,0.33142796]
[1649118603592,8.266e-05,46588.0,46586.0,0.57363944]
[1649118603685,8.266e-05,46588.0,46587.0,0.32217]
[1649118604135,0.00014453,46588.0,46587.0,0.32217]
[1649118604443,0.00053684,46590.0,46588.0,0.00028905]
[1649118604537,0.00053684,46590.0,46589.0,0.32217]
[1649118604679,0.00053684,46590.0,46589.0,0.36497]
[1649118605028,0.31073,46599.0,46589.0,0.36497]
[1649118605129,0.5,46600.0,46589.0,0.0428]
[1649118605229,0.5,46600.0,46595.0,0.30810811]
[1649118605830,0.5,46600.0,46597.0,0.30752137]
[1649118606281,0.5,46600.0,46595.0,0.30810811]
[1649118606880,0.05,46599.0,46595.0,0.30810811]
[1649118607082,0.05,46599.0,46596.0,0.32217]
[1649118607285,0.05,46599.0,46595.0,0.30810811]
[1649118607381,0.5,46600.0,46596.0,0.32217]
[1649118607482,0.5,46600.0,46596.0,0.36497]
[1649118607734,0.00053717,46599.0,46596.0,0.36497]
[1649118608134,0.00053717,46599.0,46597.0,0.28581204]
[1649118608286,0.00060932,46599.0,46598.0,0.32217]
[1649118608727,7.215e-05,46599.0,46598.0,0.32217]
[1649118609128,0.02865538,46599.0,46598.0,0.42016966]
[1649118609228,0.05723861,46599.0,46598.0,0.42016966]
[1649118609331,0.0608278,46599.0,46598.0,0.42016966]
[1649118609434,0.0608278,46599.0,46598.0,0.42216966]
[1649118609531,0.0608278,46599.0,46598.0,0.72555192]
[1649118611236,0.0608278,46599.0,46598.0,0.72355192]
[1649118611485,0.0608278,46599.0,46598.0,0.72555192]
[1649118612653,0.0608278,46599.0,46598.0,0.42216966]
[1649118612750,0.0608278,46599.0,46598.0,0.42016966]
[1649118613451,0.0608278,46599.0,46598.0,0.42316966]
[1649118613752,0.0608278,46599.0,46598.0,0.70281607]
[1649118613901,0.0608278,46599.0,46598.0,0.42316966]
[1649118614806,0.0608278,46599.0,46598.0,0.42016966]
[1649118615454,0.0608278,46599.0,46598.0,0.42316966]
[1649118616747,0.0608278,46599.0,46598.0,0.42016966]
[1649118617452,0.0608278,46599.0,46598.0,0.42316966]
[1649118618857,0.0608278,46599.0,46598.0,0.42016966]
[1649118619260,0.0608278,46599.0,46598.0,0.09799966]
[1649118619364,0.0608278,46599.0,46598.0,0.42016966]
[1649118619511,0.0608278,46599.0,46598.0,0.10099966]
[1649118620831,0.0608278,46599.0,46598.0,0.09799966]
[1649118621533,0.0608278,46599.0,46598.0,0.09999966]
[1649118622783,0.0608278,46599.0,46598.0,0.09799966]
[1649118623575,0.0608278,46599.0,46598.0,0.09999966]
[1649118624929,0.3608278,46599.0,46598.0,0.09799966]
[1649118625528,0.7418424,46599.0,46598.0,0.09799966]
[1649118625629,1.0640124,46599.0,46598.0,0.09799966]
[1649118625730,1.43366358,46599.0,46598.0,0.09799966]
[1649118625931,1.43366358,46599.0,46598.0,0.09789694]
[1649118626031,1.43366358,46599.0,46588.0,0.00028905]
[1649118626183,0.375838,46598.0,46588.0,0.00028905]
[1649118626383,0.375838,46598.0,46594.0,0.09789694]
[1649118626384,0.429508,46598.0,46594.0,0.09789694]
[1649118626483,0.0428,46597.0,46594.0,0.09789694]
[1649118626580,0.62217,46596.0,46594.0,0.09789694]
[1649118626684,0.3,46595.0,46594.0,0.09789694]
[1649118626783,0.66497,46595.0,46594.0,0.09789694]
[1649118626880,0.80597026,46595.0,46594.0,0.09789694]
[1649118626983,0.72583431,46595.0,46594.0,0.09789694]
[1649118627083,0.82583431,46595.0,46594.0,0.09789694]
[1649118627883,0.87951031,46595.0,46594.0,0.09789694]
[1649118629941,0.87958259,46595.0,46594.0,0.09789694]
[1649118630289,0.86871828,46595.0,46594.0,0.09789694]
[1649118630389,0.82591828,46595.0,46594.0,0.09789694]
[1649118630691,0.77224228,46595.0,46594.0,0.09789694]
[1649118631627,0.77583147,46595.0,46594.0,0.09789694]
[1649118632032,0.83299793,46595.0,46594.0,0.09789694]
[1649118635777,0.88667193,46595.0,46594.0,0.09789694]
[1649118636678,3.4,46594.0,46588.0,0.00028905]
[1649118636779,0.053679,46592.0,46588.0,0.00028905]
[1649118636881,0.62217,46591.0,46588.0,0.00028905]
[1649118636981,0.66497,46591.0,46588.0,0.00028905]
[1649118637081,0.81497,46591.0,46588.0,0.00028905]
[1649118637184,0.00358919,46590.0,46588.0,0.00028905]
[1649118637284,0.32217,46589.0,46588.0,0.00028905]
[1649118637381,0.62217,46589.0,46588.0,0.00028905]
[1649118637479,0.66497,46589.0,46588.0,0.00028905]
[1649118637681,0.893755,46589.0,46588.0,0.00028905]
[1649118637779,1.17222207,46589.0,46588.0,0.00028905]
[1649118637980,1.35703351,46589.0,46588.0,0.00028905]
[1649118638082,1.50703351,46589.0,46588.0,0.00028905]
[1649118638539,1.51790261,46589.0,46588.0,0.00028905]
[1649118641542,1.52863261,46589.0,46588.0,0.00028905]
[1649118642484,1.5322218,46589.0,46588.0,0.00028905]
[1649118642584,1.56080503,46589.0,46588.0,0.00028905]
[1649118642683,1.58938826,46589.0,46588.0,0.00028905]
[1649118642985,1.72657313,46589.0,46588.0,0.00028905]
[1649118643289,2.26187313,46589.0,46588.0,0.00028905]
[1649118643836,2.26187313,46589.0,46582.0,0.002]
[1649118643939,0.14469566,46584.0,46582.0,0.002]
[1649118644042,0.57633637,46583.0,46582.0,0.002]
[1649118644137,0.76013663,46583.0,46582.0,0.002]
[1649118644238,0.86013663,46583.0,46582.0,0.002]
[1649118645392,0.78000547,46583.0,46582.0,0.002]
[1649118646923,0.81220547,46583.0,46582.0,0.002]
[1649118647825,0.81579466,46583.0,46582.0,0.002]
[1649118648126,0.87296112,46583.0,46582.0,0.002]
[1649118648330,0.87296112,46583.0,46582.0,0.001]
[1649118648429,1.07296112,46583.0,46582.0,0.001]
[1649118648529,1.12296112,46583.0,46582.0,0.001]
[1649118649291,1.12296112,46583.0,46572.0,0.001]
[1649118649386,1.12296112,46583.0,46564.0,0.002]
[1649118649387,0.05370552,46579.0,46554.0,0.3]
[1649118649485,0.05370552,46579.0,46551.0,0.2412]
[1649118649486,0.32217,46576.0,46551.0,0.2412]
[1649118649581,0.32217,46576.0,46546.0,0.67787516]
[1649118649582,0.3,46575.0,46546.0,0.67787516]
[1649118649685,0.4534,46575.0,46547.0,0.33464555]
[1649118649882,0.33291,46574.0,46547.0,0.33464555]
[1649118649989,0.06427687,46574.0,46547.0,0.33464555]
[1649118650082,0.32217,46573.0,46547.0,0.33464555]
[1649118650187,0.3,46572.0,46547.0,0.33464555]
[1649118650286,0.2814454,46559.0,46554.0,0.28804035]
[1649118650388,0.30441758,46555.0,46547.0,0.33464555]
[1649118650487,0.053711,46556.0,46548.0,0.32217]
[1649118650588,0.22638526,46552.0,46547.0,0.33464555]
[1649118650687,0.22638526,46552.0,46548.0,0.32217]
[1649118651092,0.27638526,46552.0,46548.0,0.32217]
[1649118651189,0.27638526,46552.0,46538.0,0.32217]
[1649118651291,0.3,46551.0,46538.0,0.32217]
[1649118651386,0.50670202,46552.0,46547.0,0.24505646]
[1649118651490,0.50670202,46552.0,46538.0,0.32217]
[1649118651588,0.3,46551.0,46539.0,0.33480829]
[1649118651688,0.3,46551.0,46540.0,0.32217]
[1649118651989,0.30766356,46551.0,46539.0,0.33480829]
[1649118652088,0.25558531,46543.0,46539.0,0.33480829]
[1649118652189,0.25558531,46543.0,46540.0,0.32217]
[1649118652491,0.25558531,46543.0,46542.0,0.32217]
[1649118652687,0.24558531,46543.0,46542.0,0.32217]
[1649118652887,0.24458531,46543.0,46542.0,0.32217]
[1649118653090,0.2481745,46543.0,46542.0,0.32217]
[1649118653190,0.2471745,46543.0,46542.0,0.32217]
[1649118653436,0.30434096,46543.0,46542.0,0.016302]
[1649118653527,0.30434096,46543.0,46542.0,0.32217]
[1649118653777,0.30434096,46543.0,46541.0,0.32217]
[1649118653878,0.30441286,46543.0,46541.0,0.32217]
[1649118654283,0.30441286,46543.0,46542.0,0.29158143]
[1649118654382,0.06082755,46543.0,46542.0,0.29158143]
[1649118654781,0.06082755,46543.0,46542.0,0.61375143]
[1649118656234,0.06082755,46543.0,46542.0,0.32217]
[1649118657895,0.06082755,46543.0,46541.0,0.24400269]
[1649118657998,0.06082755,46543.0,46542.0,0.32217]
[1649118658096,0.05723836,46543.0,46542.0,0.32217]
[1649118658197,0.05723836,46543.0,46541.0,0.05]
[1649118658296,0.05723836,46543.0,46542.0,0.32217]
[1649118658395,0.05723836,46543.0,46542.0,0.65684493]
[1649118658496,7.19e-05,46543.0,46542.0,0.70684493]
[1649118658800,0.05723836,46543.0,46542.0,0.70684493]
[1649118658995,0.05723836,46543.0,46542.0,0.38467493]
[1649118659550,0.05723836,46543.0,46542.0,0.65684493]
[1649118659650,0.05723836,46543.0,46542.0,0.33467493]
[1649118660150,0.05723836,46543.0,46542.0,0.32608866]
[1649118660248,0.04864416,46543.0,46542.0,0.32608866]
[1649118660350,0.04864416,46543.0,46542.0,0.64825866]
[1649118660652,0.69651494,46543.0,46542.0,0.94647178]
[1649118660751,0.69651494,46543.0,46542.0,0.62430178]
[1649118661433,0.69651494,46543.0,46542.0,0.62038312]
[1649118661636,0.69651494,46543.0,46540.0,0.05371273]
[1649118661735,0.69651494,46543.0,46540.0,0.00054068]
[1649118662237,0.69658696,46543.0,46540.0,0.00054068]
[1649118662742,0.69658696,46543.0,46535.0,0.24249582]
[1649118662839,0.30766356,46542.0,46535.0,0.29249582]
[1649118662943,0.2312492,46541.0,46535.0,0.29249582]
[1649118663038,0.2312492,46541.0,46535.0,0.05873982]
[1649118663237,0.2312492,46541.0,46535.0,0.00873982]
[1649118663440,0.00358919,46538.0,46535.0,0.00873982]
[1649118663541,0.00358919,46538.0,46530.0,0.1924]
[1649118663646,0.2610014,46533.0,46532.0,0.32217]
[1649118663741,0.00358919,46538.0,46535.0,0.32847145]
[1649118664141,0.60123219,46537.0,46535.0,0.32847145]
[1649118664243,0.27906219,46537.0,46535.0,0.32847145]
[1649118664341,0.32217,46536.0,46535.0,0.32847145]
[1649118664441,0.05,46537.0,46535.0,0.32847145]
[1649118664785,0.28945716,46536.0,46535.0,0.32847145]
[1649118664886,0.33945716,46536.0,46535.0,0.32847145]
[1649118664985,0.66162716,46536.0,46535.0,0.32847145]
[1649118665186,0.33945716,46536.0,46535.0,0.32847145]
[1649118666291,0.33945716,46536.0,46535.0,0.66319216]
[1649118667190,0.05,46536.0,46535.0,0.66319216]
[1649118667292,0.01463148,46536.0,46535.0,0.66319216]
[1649118667391,0.00358919,46538.0,46535.0,0.66319216]
[1649118668192,0.00358919,46538.0,46536.0,0.33472071]
[1649118668537,1.00563643,46543.0,46537.0,0.25419109]
[1649118668639,0.74787078,46543.0,46537.0,0.25419109]
[1649118668739,0.00358919,46540.0,46537.0,0.25419109]
[1649118668940,0.00358919,46540.0,46538.0,0.0005408]
[1649118669141,0.04864416,46539.0,46538.0,0.0005408]
[1649118669439,0.04864416,46539.0,46538.0,0.3227108]
[1649118669943,0.04864416,46539.0,46538.0,0.32217]
[1649118670140,0.04864416,46539.0,46538.0,0.65671306]
[1649118672933,0.04864416,46539.0,46538.0,0.33454306]
[1649118673034,0.04864416,46539.0,46538.0,0.65671306]
[1649118673529,0.04864416,46539.0,46538.0,0.33454306]
[1649118673629,0.04864416,46539.0,46538.0,0.65671306]
[1649118673731,0.04864416,46539.0,46538.0,0.33454306]
[1649118674135,0.05223335,46539.0,46538.0,0.33454306]
[1649118674234,0.37440335,46539.0,46537.0,0.33454306]
[1649118674386,0.03217242,46539.0,46537.0,0.33454306]
[1649118674485,0.05358919,46539.0,46537.0,0.33454306]
[1649118674685,0.04864416,46538.0,46537.0,0.33454306]
[1649118674985,0.29715825,46538.0,46537.0,0.33454306]
[1649118675085,0.34715825,46538.0,46537.0,0.33454306]
[1649118676284,0.34715825,46538.0,46536.0,0.33454306]
[1649118679790,0.32217,46537.0,46536.0,0.33454306]
[1649118679991,0.64977651,46537.0,46536.0,0.33454306]
[1649118680095,0.67835974,46537.0,46536.0,0.33454306]
[1649118680491,0.52906902,46537.0,46536.0,0.33454306]
[1649118680693,0.37100316,46537.0,46536.0,0.33454306]
[1649118682195,0.37107488,46537.0,46536.0,0.33454306]
[1649118682595,0.42107488,46537.0,46536.0,0.33454306]
[1649118682844,0.52107488,46537.0,46536.0,0.33454306]
[1649118683785,0.52107488,46537.0,46535.0,0.32847145]
[1649118683886,0.236724,46536.0,46535.0,0.32847145]
[1649118684087,0.236724,46536.0,46535.0,0.12698196]
[1649118684388,0.236724,46536.0,46520.0,0.4733]
[1649118684389,0.24031319,46536.0,46520.0,0.4733]
[1649118684487,0.24031319,46536.0,46521.0,0.3111415]
[1649118684488,0.29404919,46536.0,46521.0,0.3111415]
[1649118684587,0.29404919,46536.0,46533.0,0.00053658]
[1649118684688,0.34778919,46536.0,46533.0,0.00053658]
[1649118684788,0.40152919,46536.0,46533.0,0.00053658]
[1649118684895,0.51226919,46536.0,46533.0,0.00053658]
[1649118685389,0.04864416,46534.0,46533.0,0.00053658]
[1649118685487,0.42100316,46534.0,46533.0,0.00053658]
[1649118685587,0.42100316,46534.0,46523.0,0.001]
[1649118685691,0.52100316,46534.0,46523.0,0.001]
[1649118685787,0.52100316,46534.0,46532.0,0.00053656]
[1649118685889,0.23402566,46533.0,46532.0,0.00053656]
[1649118685988,0.47074966,46533.0,46532.0,0.00053656]
[1649118686192,0.57074966,46533.0,46532.0,0.00053656]
[1649118686694,0.57074966,46533.0,46525.0,0.00214658]
[1649118686794,0.55635492,46532.0,46531.0,0.005]
[1649118686996,0.65635492,46532.0,46531.0,0.005]
[1649118687331,0.422359,46532.0,46531.0,0.005]
[1649118687881,0.66445273,46532.0,46531.0,0.005]
[1649118689337,0.34209373,46532.0,46531.0,0.005]
[1649118689489,7.926e-05,46533.0,46531.0,0.005]
[1649118689789,0.00358919,46532.0,46531.0,0.005]
[1649118690339,0.29483125,46532.0,46531.0,0.005]
[1649118690640,0.34347541,46532.0,46531.0,0.005]
[1649118690743,0.66583441,46532.0,46531.0,0.005]
[1649118690845,0.44347541,46532.0,46531.0,0.005]
[1649118690945,0.15223335,46532.0,46531.0,0.005]
[1649118691846,0.05223335,46532.0,46531.0,0.005]
[1649118691946,0.34707836,46532.0,46531.0,0.005]
[1649118692144,0.34707836,46532.0,46524.0,0.24419403]
[1649118692246,0.23724736,46529.0,46523.0,0.001]
[1649118692345,0.28724736,46529.0,46523.0,0.001]
[1649118692847,0.28724736,46529.0,46524.0,0.33285313]
[1649118693000,0.28724736,46529.0,46525.0,0.322359]
[1649118693148,0.28724736,46529.0,46524.0,0.33344442]
[1649118693449,0.28724736,46529.0,46524.0,0.59643141]
[1649118693549,0.28724736,46529.0,46524.0,0.33344442]
[1649118693851,0.28724736,46529.0,46525.0,0.33285313]
[1649118695089,0.00358919,46527.0,46524.0,0.00059129]
[1649118695191,0.00284716,46527.0,46523.0,0.001]
[1649118695388,0.00284716,46527.0,46525.0,0.00057019]
[1649118695991,0.04864416,46526.0,46525.0,0.00057019]
[1649118696391,0.04864416,46526.0,46523.0,0.001]
[1649118696593,0.04864416,46526.0,46523.0,0.0015702]
[1649118696945,0.04864416,46526.0,46524.0,0.33285094]
[1649118697045,0.04864416,46526.0,46524.0,0.32785094]
[1649118697996,0.04864416,46526.0,46523.0,0.00155212]
[1649118698737,0.04864416,46526.0,46523.0,0.001]
[1649118700291,7.9e-05,46525.0,46521.0,0.24336497]
[1649118700392,0.00284716,46524.0,46518.0,0.322401]
[1649118700693,0.00284716,46524.0,46518.0,0.426135]
[1649118701291,0.04864416,46521.0,46518.0,0.426135]
[1649118701392,0.00284716,46524.0,46522.0,0.322401]
[1649118701591,0.00284716,46524.0,46523.0,0.24729596]
[1649118701690,0.00284716,46524.0,46523.0,0.8538784]
[1649118701793,0.00284716,46524.0,46523.0,0.60658244]
[1649118701889,0.00284716,46524.0,46523.0,0.322401]
[1649118703038,0.00284716,46524.0,46523.0,0.5815924]
[1649118703894,0.00284716,46524.0,46523.0,0.59208611]
[1649118704093,0.00291892,46524.0,46523.0,0.59208611]
[1649118705195,0.00291892,46524.0,46523.0,0.33289471]
[1649118705846,0.00291892,46524.0,46521.0,0.09728832]
[1649118706085,0.00298993,46524.0,46521.0,0.09728832]
[1649118706181,0.00014277,46524.0,46521.0,0.09728832]
[1649118706280,0.00014277,46524.0,46522.0,0.2779748]
[1649118706482,0.00284716,46523.0,46522.0,0.2779748]
[1649118706981,0.00284716,46523.0,46522.0,0.6003758]
[1649118708532,0.00284716,46523.0,46522.0,0.2779748]
[1649118708732,0.00284716,46523.0,46522.0,0.6003758]
[1649118709133,0.00284716,46523.0,46522.0,0.2779748]
[1649118709783,0.00284716,46523.0,46522.0,0.59099293]
[1649118710233,0.00284716,46523.0,46522.0,0.89680213]
[1649118710337,0.00284716,46523.0,46522.0,1.21920313]
[1649118710534,0.01075,46531.0,46528.0,0.00583784]
[1649118710635,0.053739,46532.0,46528.0,0.00583784]
[1649118710738,0.01074,46536.0,46528.0,0.00583784]
[1649118711038,0.322401,46535.0,46528.0,0.00583784]
[1649118711237,0.261675,46534.0,46528.0,0.00583784]
[1649118711337,0.22175295,46530.0,46528.0,0.00583784]
[1649118711639,0.27175295,46530.0,46528.0,0.00583784]
[1649118712439,0.05,46530.0,46528.0,0.00583784]
[1649118712540,0.30806909,46532.0,46528.0,0.00583784]
[1649118712541,0.35806909,46532.0,46528.0,0.00583784]
[1649118713436,0.2608446,46531.0,46528.0,0.00583784]
[1649118713738,0.05,46532.0,46528.0,0.00583784]
[1649118713836,0.01075,46533.0,46528.0,0.00583784]
[1649118714543,0.05,46534.0,46529.0,0.25519613]
[1649118714642,0.01075,46533.0,46532.0,0.2758094]
[1649118714741,0.001,46537.0,46532.0,0.2758094]
[1649118714742,0.01074,46536.0,46532.0,0.2758094]
[1649118715389,0.01074,46536.0,46533.0,0.322401]
[1649118715489,0.001,46537.0,46534.0,0.0428]
[1649118715588,0.001,46537.0,46532.0,0.2758094]
[1649118715689,0.001,46537.0,46534.0,0.0428]
[1649118717189,0.32971593,46539.0,46534.0,0.0428]
[1649118717839,0.32971593,46539.0,46528.0,0.00583784]
[1649118717940,0.32971593,46539.0,46529.0,0.0428]
[1649118718141,0.01074,46538.0,46529.0,0.0428]
[1649118718241,0.25374071,46537.0,46529.0,0.0428]
[1649118718340,0.30374071,46537.0,46529.0,0.0428]
[1649118718592,0.01074,46536.0,46529.0,0.0428]
[1649118719693,0.23991118,46536.0,46529.0,0.0428]
[1649118719793,0.322401,46535.0,46528.0,0.00583784]
[1649118719994,0.372401,46535.0,46528.0,0.00583784]
[1649118720096,0.26957733,46531.0,46528.0,0.00583784]
[1649118720194,0.26957733,46531.0,46525.0,0.05]
[1649118720344,0.26097948,46531.0,46521.0,0.15330174]
[1649118720492,0.26097948,46531.0,46522.0,0.33298785]
[1649118720693,0.26097948,46531.0,46522.0,0.38298785]
[1649118720960,0.23814381,46529.0,46522.0,0.38298785]
[1649118721163,0.23814381,46529.0,46523.0,0.27570377]
[1649118721400,0.23814381,46529.0,46522.0,0.38298785]
[1649118721495,0.23814381,46529.0,46521.0,0.15330174]
[1649118721895,0.23814381,46529.0,46522.0,0.322401]
[1649118721994,0.23814381,46529.0,46521.0,0.15330174]
[1649118722195,0.23814381,46529.0,46525.0,0.25025114]
[1649118722296,0.28814381,46529.0,46521.0,0.10330174]
[1649118722395,0.28814381,46529.0,46522.0,0.33299117]
[1649118725282,0.28814381,46529.0,46521.0,0.09728832]
[1649118726986,0.3058092,46528.0,46521.0,0.09728832]
[1649118727938,0.28586721,46524.0,46521.0,0.09728832]
[1649118728088,0.3058092,46528.0,46521.0,0.09728832]
[1649118729144,0.28640013,46524.0,46521.0,0.09728832]
[1649118730844,0.3058092,46528.0,46521.0,0.09728832]
[1649118732048,0.053745,46527.0,46521.0,0.09728832]
[1649118734162,0.27597386,46525.0,46521.0,0.09728832]
[1649118734357,0.053745,46527.0,46521.0,0.09728832]
[1649118734657,0.3058092,46528.0,46521.0,0.09728832]
[1649118735309,0.23799357,46525.0,46521.0,0.09728832]
[1649118735408,0.3058092,46528.0,46521.0,0.09728832]
[1649118737193,0.23412324,46525.0,46521.0,0.09728832]
[1649118737491,0.3058092,46528.0,46521.0,0.09728832]
[1649118738493,0.23804908,46525.0,46521.0,0.09728832]
[1649118738693,0.3058092,46528.0,46521.0,0.09728832]
[1649118738994,0.06075,46529.0,46521.0,0.09728832]
[1649118739097,0.05,46529.0,46521.0,0.09728832]
[1649118739200,0.001,46530.0,46521.0,0.09728832]
[1649118739296,0.05,46532.0,46521.0,0.09728832]
[1649118739397,0.05,46532.0,46522.0,0.322401]
[1649118739495,0.14153406,46539.0,46522.0,0.35376565]
[1649118739601,0.14153406,46539.0,46523.0,0.0428]
[1649118739719,0.14153406,46539.0,46532.0,0.26871943]
[1649118739813,0.3165492,46542.0,46533.0,0.313272]
[1649118739911,0.3058092,46542.0,46532.0,0.26563933]
[1649118740012,0.01074,46541.0,46532.0,0.26563933]
[1649118740310,0.01074,46541.0,46530.0,0.30296413]
[1649118740511,0.01074,46541.0,46526.0,0.096527]
[1649118740614,0.01074,46541.0,46526.0,0.146527]
[1649118740811,0.01074,46541.0,46526.0,0.0928]
[1649118741413,0.28343422,46536.0,46529.0,0.30872533]
[1649118741513,0.27350896,46534.0,46526.0,0.05]
[1649118741716,0.27350896,46534.0,46524.0,1.95558476]
[1649118742212,0.27350896,46534.0,46524.0,0.05]
[1649118742365,0.27350896,46534.0,46522.0,0.0928]
[1649118742464,0.27350896,46534.0,46522.0,0.05]
[1649118742564,0.27350896,46534.0,46524.0,0.26660936]
[1649118742665,0.27350896,46534.0,46521.0,0.14728832]
[1649118743263,0.32350896,46534.0,46521.0,0.14728832]
[1649118743844,0.2296406,46528.0,46522.0,0.322401]
[1649118744046,0.34255742,46533.0,46529.0,0.24206607]
[1649118744146,0.62897564,46532.0,46529.0,0.24206607]
[1649118744250,0.30657464,46532.0,46529.0,0.24206607]
[1649118744550,0.261675,46531.0,46529.0,0.24206607]
[1649118744647,0.30657464,46530.0,46529.0,0.24206607]
[1649118744748,0.27350896,46534.0,46529.0,0.24206607]
[1649118744749,0.30657464,46533.0,46529.0,0.24206607]
[1649118744847,0.322401,46532.0,46529.0,0.24206607]
[1649118744949,0.261675,46531.0,46529.0,0.24206607]
[1649118745050,0.56343622,46530.0,46529.0,0.24206607]
[1649118745248,0.25686158,46530.0,46529.0,0.24206607]
[1649118745350,0.56343622,46530.0,46529.0,0.24206607]
[1649118745447,0.30657464,46533.0,46529.0,0.24206607]
[1649118745548,0.322401,46532.0,46529.0,0.24206607]
[1649118745847,0.322401,46532.0,46529.0,0.24306607]
[1649118746350,0.322401,46532.0,46529.0,0.24206607]
[1649118746450,0.24875585,46530.0,46529.0,0.24206607]
[1649118746552,0.55533049,46530.0,46529.0,0.24206607]
[1649118746651,0.322401,46532.0,46529.0,0.24206607]
[1649118746757,0.30657464,46530.0,46529.0,0.24206607]
[1649118746903,0.322401,46532.0,46529.0,0.24206607]
[1649118747639,0.24994542,46530.0,46529.0,0.24206607]
[1649118747738,0.261675,46530.0,46529.0,0.24206607]
[1649118747838,0.30657464,46533.0,46529.0,0.24206607]
[1649118747940,0.322401,46532.0,46529.0,0.24206607]
[1649118748739,0.62811547,46532.0,46529.0,0.24206607]
[1649118749444,0.67811547,46532.0,46529.0,0.24206607]
[1649118749695,0.05,46532.0,46529.0,0.24206607]
[1649118749794,0.322401,46531.0,46529.0,0.24206607]
[1649118749947,0.261675,46530.0,46529.0,0.24206607]
[1649118750600,0.81944347,46530.0,46529.0,0.24206607]
[1649118751487,0.51286883,46530.0,46529.0,0.24206607]
[1649118751790,0.88187892,46530.0,46529.0,0.24206607]
[1649118752386,1.0674159,46530.0,46529.0,0.24206607]
[1649118752486,0.88187892,46530.0,46529.0,0.24206607]
[1649118752787,0.56286883,46530.0,46529.0,0.24206607]
[1649118753041,0.311675,46530.0,46529.0,0.24206607]
[1649118753891,0.61567176,46530.0,46529.0,0.24206607]
[1649118756688,0.61567176,46530.0,46529.0,0.23706607]
[1649118757092,0.9222464,46530.0,46529.0,0.23706607]
[1649118757693,1.0222464,46530.0,46529.0,0.23706607]
[1649118758697,1.0222464,46530.0,46529.0,0.02069844]
[1649118758799,1.16377799,46530.0,46529.0,0.02069844]
[1649118758898,1.20657799,46530.0,46529.0,0.02069844]
[1649118759300,1.0650464,46530.0,46529.0,0.02069844]
[1649118759851,1.07592543,46530.0,46529.0,0.02069844]
[1649118760356,1.34233441,46530.0,46529.0,0.02069844]
[1649118760456,1.48057314,46530.0,46529.0,0.02069844]
[1649118760555,1.48057314,46530.0,46504.0,1.13962106]
[1649118760556,2.01587314,46530.0,46504.0,1.13962106]
[1649118760660,0.2,46528.0,46504.0,0.96340044]
[1649118760754,0.261675,46522.0,46504.0,0.68750044]
[1649118760858,0.322401,46520.0,46504.0,0.00060044]
[1649118761055,0.15,46520.0,46504.0,0.00060044]
[1649118761153,0.0428,46519.0,46504.0,0.00060044]
[1649118761252,0.52510656,46514.0,46504.0,0.00060044]
[1649118761355,0.52510656,46514.0,46502.0,0.00280132]
[1649118761356,0.62960488,46513.0,46502.0,0.00280132]
[1649118761455,0.87240488,46513.0,46502.0,0.00280132]
[1649118761602,0.97240488,46513.0,46502.0,0.00280132]
[1649118761708,0.5353,46511.0,46502.0,0.00280132]
[1649118761810,0.107571,46509.0,46502.0,0.00280132]
[1649118761954,0.322401,46508.0,46502.0,0.00280132]
[1649118762055,0.05,46508.0,46502.0,0.00280132]
[1649118762224,0.05,46508.0,46503.0,0.322401]
[1649118762225,0.0428,46507.0,46503.0,0.322401]